bitfinex-derivatives/quotes_ETHF0:USTF0_20260119
["timestamp","ask_amount","ask_price","bid_price","bid_amount"]
[1768847522267,1.2942754,3211.1,3210.2,0.15932636]
[1768847522459,0.93518511,3211.0,3210.2,0.15932636]
[1768847522758,1.2942754,3211.1,3210.2,0.15932636]
[1768847522959,0.9351849,3211.0,3210.2,0.15932636]
[1768847523267,1.2942754,3211.1,3210.2,0.15932636]
[1768847523567,0.93501421,3211.0,3210.2,0.15932636]
[1768847523764,1.2942754,3211.1,3210.2,0.15932636]
[1768847523963,0.93501442,3211.0,3210.2,0.15932636]
[1768847524170,1.2942754,3211.1,3210.2,0.15932636]
[1768847524368,0.93487496,3211.0,3210.2,0.31634182]
[1768847524670,1.2942754,3211.1,3210.2,0.31634182]
[1768847524864,0.93487349,3211.0,3210.2,0.31634182]
[1768847525062,1.2942754,3211.1,3210.2,0.31634182]
[1768847525365,0.93477679,3211.0,3210.2,0.31634182]
[1768847525560,1.2942754,3211.1,3210.2,0.31634182]
[1768847525761,1.2942754,3210.9,3210.2,0.16051182]
[1768847526472,1.2942754,3211.1,3210.2,0.16051182]
[1768847526672,0.93464023,3211.0,3210.2,0.16051182]
[1768847526873,1.2942754,3211.1,3210.2,0.16051182]
[1768847527173,0.93464018,3211.0,3210.2,0.16051182]
[1768847527374,1.2942754,3211.1,3210.2,0.16051182]
[1768847527565,0.93453705,3211.0,3210.2,0.16051182]
[1768847527765,1.2942754,3211.1,3210.2,0.16051182]
[1768847527965,0.93582745,3211.0,3210.2,0.16051182]
[1768847528170,1.2942754,3211.1,3210.2,0.00349636]
[1768847528370,1.2942754,3210.9,3210.2,0.00349636]
[1768847528777,1.2942754,3210.9,3209.9,0.15701546]
[1768847529774,1.2942754,3210.9,3209.9,0.16051785]
[1768847536183,1.6703867,3211.5,3209.9,0.16051785]
[1768847536481,1.2942754,3210.9,3209.9,0.16051785]
[1768847538185,1.6703867,3211.5,3209.9,0.16051785]
[1768847538384,0.93515452,3211.4,3209.9,0.00350239]
[1768847538686,1.8262067,3210.6,3208.7,1.2942754]
[1768847538874,1.2942754,3210.3,3208.8,0.1559]
[1768847539078,0.93515452,3210.2,3208.9,0.1559]
[1768847539279,0.93515452,3210.1,3209.0,1.2942754]
[1768847539484,0.00334527,3210.1,3209.0,1.33913488]
[1768847539681,0.00334527,3210.1,3209.1,0.04264564]
[1768847540082,0.00334527,3210.1,3209.2,0.04264564]
[1768847540284,0.00334527,3210.1,3209.1,0.04264564]
[1768847540686,0.00334527,3210.1,3209.2,0.04264564]
[1768847540888,0.00334527,3210.1,3209.1,0.04264564]
[1768847541283,0.00334527,3210.1,3209.2,0.04264564]
[1768847541483,0.00334527,3210.1,3209.1,0.04264564]
[1768847541891,0.00334527,3210.1,3209.2,0.04264564]
[1768847542091,0.00334527,3210.1,3209.1,0.04264564]
[1768847542490,0.00334527,3210.1,3209.2,0.04264564]
[1768847542794,0.00334527,3210.1,3209.1,0.19973928]
[1768847543290,0.00334527,3210.1,3209.2,0.04264564]
[1768847545393,0.00334527,3210.1,3209.1,0.15709364]
[1768847545594,0.00334527,3210.1,3209.2,0.04264564]
[1768847546094,0.00334527,3210.1,3209.3,0.15709364]
[1768847546304,4.7873867,3211.3,3209.7,0.15709364]
[1768847546600,1.2942754,3211.0,3209.8,0.15709364]
[1768847547003,1.2942754,3211.0,3209.9,0.04264564]
[1768847547199,1.2942754,3210.6,3209.8,0.15709364]
[1768847547496,1.2942754,3210.3,3209.7,0.15586]
[1768847548101,1.2942754,3210.3,3210.0,0.04264564]
[1768847548494,1.2942754,3210.3,3210.2,0.04264564]
[1768847548797,1.2942754,3210.3,3209.7,0.15586]
[1768847549896,1.2942754,3210.5,3209.7,0.15586]
[1768847550301,1.2942754,3210.7,3209.7,0.15586]
[1768847551202,1.2942754,3210.5,3209.4,0.15709364]
[1768847551804,1.29702957,3211.0,3209.4,0.15709364]
[1768847552104,1.2942754,3210.5,3209.4,0.15709364]
[1768847553307,1.2942754,3210.3,3209.4,0.15709364]
[1768847554305,1.2942754,3210.3,3209.2,0.15588]
[1768847554503,1.2942754,3210.1,3209.2,0.15588]
[1768847554695,1.2942754,3210.3,3209.2,0.15588]
[1768847554893,0.07360433,3210.9,3209.2,0.31297364]
[1768847555090,1.2942754,3210.5,3209.2,0.31297364]
[1768847555295,0.93663152,3210.4,3209.2,0.31297364]
[1768847556603,0.93663152,3210.4,3209.2,1.60724904]
[1768847556803,0.93663152,3210.4,3209.4,0.15709364]
[1768847557006,1.2942754,3210.7,3209.4,0.15709364]
[1768847557505,0.93687949,3210.6,3209.4,0.15709364]
[1768847557800,0.93687949,3210.5,3209.4,0.15709364]
[1768847558000,0.93687949,3210.4,3209.4,0.15709364]
[1768847558204,1.2942754,3210.7,3209.4,0.15709364]
[1768847558406,0.93700584,3210.6,3209.4,0.15709364]
[1768847558704,0.93700584,3210.5,3209.4,0.15709364]
[1768847558900,0.93700584,3210.4,3209.4,0.15709364]
[1768847559104,1.2942754,3210.5,3209.3,0.15588]
[1768847559294,0.93713357,3210.4,3209.3,0.15588]
[1768847559497,1.2942754,3210.7,3209.4,0.15709364]
[1768847559697,0.93713356,3210.6,3209.4,0.15709364]
[1768847559893,0.93713356,3210.5,3209.4,0.15709364]
[1768847560093,0.93713356,3210.4,3209.4,0.15709364]
[1768847560307,1.2942754,3210.7,3209.4,0.15709364]
[1768847560503,0.93729145,3210.6,3209.4,0.15709364]
[1768847560710,0.93729145,3210.5,3209.5,0.15253593]
[1768847560894,0.93729145,3210.4,3209.5,0.15253593]
[1768847561101,1.2942754,3210.7,3209.5,0.15253593]
[1768847561307,0.93733573,3210.6,3209.5,0.15253593]
[1768847561502,0.93733573,3210.5,3209.5,0.15253593]
[1768847561702,0.93733573,3210.4,3209.5,0.15253593]
[1768847561895,1.2942754,3210.7,3209.5,0.15253593]
[1768847562099,0.9373344,3210.6,3209.5,0.15253593]
[1768847562399,0.9373344,3210.5,3209.5,0.15253593]
[1768847562600,0.9373344,3210.4,3209.5,0.15253593]
[1768847562907,1.2942754,3210.7,3209.5,0.15253593]
[1768847563108,0.93738531,3210.6,3209.5,0.15253593]
[1768847563307,0.93738531,3210.5,3209.5,0.15253593]
[1768847563507,0.93738531,3210.4,3209.5,0.15253593]
[1768847563699,1.2942754,3210.7,3209.5,0.15253593]
[1768847563900,0.93743421,3210.6,3209.5,0.15253593]
[1768847564100,0.93743421,3210.5,3209.5,0.15253593]
[1768847564302,1.2942754,3210.7,3209.5,0.15253593]
[1768847564503,0.93753225,3210.6,3209.5,0.15253593]
[1768847564707,0.93753225,3210.5,3209.5,0.15253593]
[1768847565009,0.93753225,3210.4,3209.5,0.15253593]
[1768847565212,1.2942754,3210.7,3209.5,0.15253593]
[1768847565398,0.93801982,3210.6,3209.5,0.15253593]
[1768847565601,0.93802009,3210.5,3209.5,0.15253593]
[1768847565807,0.93802009,3210.4,3209.5,0.30840593]
[1768847566004,1.2942754,3210.7,3209.5,0.30840593]
[1768847566207,0.93802397,3210.6,3209.8,0.15585]
[1768847566409,0.00275417,3211.0,3209.8,0.15585]
[1768847566607,0.93831922,3210.9,3209.8,0.15585]
[1768847566806,0.93831922,3210.8,3209.8,0.15585]
[1768847567009,0.93831922,3210.7,3209.8,0.15585]
[1768847567205,0.93831922,3210.6,3209.8,0.15585]
[1768847567406,1.29702957,3211.0,3209.8,0.15585]
[1768847567606,0.93862041,3210.9,3209.8,0.15585]
[1768847567805,0.93862041,3210.8,3209.8,0.15585]
[1768847568007,0.93862041,3210.7,3209.8,0.15585]
[1768847568206,0.93862041,3210.6,3209.8,0.15585]
[1768847568412,0.00275417,3211.0,3209.8,0.30838593]
[1768847568612,0.93901689,3210.9,3209.8,0.30838593]
[1768847568913,0.93901689,3210.8,3209.8,0.30838593]
[1768847569107,0.93901689,3210.7,3209.8,0.30838593]
[1768847569301,0.93901689,3210.6,3209.8,0.30838593]
[1768847569505,0.00275417,3211.0,3209.8,0.30838593]
[1768847569710,0.93888606,3210.9,3209.8,0.30838593]
[1768847569904,0.93888606,3210.8,3209.8,0.30838593]
[1768847570105,0.93888606,3210.7,3209.8,0.30838593]
[1768847570305,0.93888606,3210.6,3209.8,0.15585]
[1768847570505,1.2942754,3210.5,3209.8,0.15585]
[1768847571217,1.2942754,3210.5,3209.3,0.15588]
[1768847571512,0.93840403,3210.4,3209.3,0.15588]
[1768847571708,1.2942754,3210.5,3209.3,0.15588]
[1768847571909,0.93840127,3210.4,3209.3,0.15588]
[1768847572112,1.2942754,3210.5,3209.3,0.15588]
[1768847572313,0.93850723,3210.4,3209.3,0.15588]
[1768847572514,1.2942754,3210.5,3209.3,0.15588]
[1768847572714,0.93850554,3210.4,3209.3,0.15588]
[1768847572915,1.2942754,3210.5,3209.3,0.15588]
[1768847573109,0.93850547,3210.4,3209.3,0.15588]
[1768847573312,1.2942754,3210.5,3209.3,0.15588]
[1768847573511,0.93862255,3210.4,3209.3,0.15588]
[1768847573713,1.2942754,3210.5,3209.3,0.15588]
[1768847573912,0.93862334,3210.4,3209.3,0.15588]
[1768847574111,1.2942754,3210.5,3209.3,0.15588]
[1768847574313,0.93876142,3210.4,3209.3,0.15588]
[1768847574512,1.2942754,3210.5,3209.3,0.15588]
[1768847574712,0.93876081,3210.4,3209.3,0.15588]
[1768847574914,1.366253,3210.9,3209.3,0.15588]
[1768847575113,0.93876081,3210.8,3209.3,0.15588]
[1768847575315,0.93876081,3210.7,3209.3,0.15588]
[1768847575521,0.93876081,3210.6,3209.3,0.15588]
[1768847575721,0.93876081,3210.5,3209.3,0.15588]
[1768847575921,0.93876081,3210.4,3209.3,0.15588]
[1768847576123,0.93912444,3210.3,3209.3,0.15588]
[1768847576326,3.0366397,3210.9,3209.3,0.15588]
[1768847576527,0.93912365,3210.8,3209.3,0.15588]
[1768847576825,0.93912365,3210.7,3209.3,0.15588]
[1768847577015,0.93912365,3210.6,3209.3,0.15588]
[1768847577218,0.93912365,3210.5,3209.3,0.15588]
[1768847577524,0.93912365,3210.4,3209.4,0.15587]
[1768847577822,0.93912365,3210.3,3209.4,0.15587]
[1768847578009,3.0366397,3210.9,3209.4,0.15587]
[1768847578213,0.93917578,3210.8,3209.4,0.15587]
[1768847578412,0.93917578,3210.7,3209.4,0.15587]
[1768847578621,0.93917578,3210.6,3209.4,0.15587]
[1768847578928,0.93917578,3210.5,3209.2,0.15253593]
[1768847579118,0.93917578,3210.4,3209.2,0.15253593]
[1768847579320,1.67314087,3211.0,3209.2,0.15253593]
[1768847579527,1.27279113,3210.9,3209.2,0.15253593]
[1768847579725,0.9392455,3210.8,3209.2,0.15253593]
[1768847579925,0.9392455,3210.7,3209.2,0.15253593]
[1768847580218,0.9392455,3210.6,3209.9,0.14580603]
[1768847580424,0.00275417,3211.0,3209.9,0.30165603]
[1768847580616,0.93939862,3210.9,3210.1,0.14580603]
[1768847580817,0.93939862,3210.8,3210.1,0.14580603]
[1768847581019,0.00275417,3211.0,3210.1,0.14580603]
[1768847581221,0.93943851,3210.9,3210.1,0.14580603]
[1768847581426,0.00275417,3211.0,3210.1,0.14580603]
[1768847581619,0.9392348,3210.9,3210.1,0.14580603]
[1768847581820,0.00275417,3211.0,3210.1,0.14580603]
[1768847582026,0.93923437,3210.9,3210.1,0.14580603]
[1768847582226,0.00275417,3211.0,3210.1,0.14580603]
[1768847582525,0.9389893,3210.9,3210.1,0.14580603]
[1768847582720,0.00275417,3211.0,3210.1,0.14580603]
[1768847582916,0.00275417,3211.0,3210.3,0.14580603]
[1768847583922,0.00275417,3211.0,3210.2,0.15583]
[1768847584328,0.00275417,3211.0,3209.6,0.15586]
[1768847585328,0.00275417,3211.0,3209.8,0.15585]
[1768847586423,0.00275417,3211.0,3209.9,0.15585]
[1768847593734,0.00275417,3211.0,3209.9,0.30165603]
[1768847595543,0.00275417,3211.0,3210.0,0.30164603]
[1768847596548,0.00275417,3211.0,3210.0,0.15584]
[1768847596738,0.93831984,3210.9,3210.0,0.15584]
[1768847597047,0.00275417,3211.0,3210.0,0.15584]
[1768847597242,0.93834099,3210.9,3210.0,0.15584]
[1768847597444,0.00275417,3211.0,3210.0,0.15584]
[1768847597642,0.93834021,3210.9,3210.0,0.15584]
[1768847597849,0.00275417,3211.0,3210.0,0.15584]
[1768847598545,1.29805087,3211.0,3209.6,0.14580603]
[1768847598748,0.93831029,3210.9,3209.3,0.15588]
[1768847598945,0.93831029,3210.8,3209.3,0.30168603]
[1768847599151,0.93831029,3210.7,3209.3,0.30168603]
[1768847599352,0.93831029,3210.6,3209.3,0.30168603]
[1768847599551,0.93831029,3210.5,3209.3,0.30168603]
[1768847599954,0.93831029,3210.4,3209.3,0.30168603]
[1768847600148,3.03657655,3211.0,3209.3,0.30168603]
[1768847600355,1.2952967,3210.5,3209.3,0.30168603]
[1768847600656,0.93641085,3210.4,3209.3,0.30168603]
[1768847600859,3.03657655,3211.0,3209.3,0.30168603]
[1768847601060,1.26949442,3210.9,3209.3,0.30168603]
[1768847601357,0.93640781,3210.8,3209.3,0.30168603]
[1768847601551,0.93640781,3210.7,3209.3,0.30168603]
[1768847601753,0.93640781,3210.6,3209.3,0.30168603]
[1768847601952,0.93640781,3210.5,3209.3,0.30168603]
[1768847602150,0.93640781,3210.4,3209.3,0.30168603]
[1768847602459,0.06815031,3210.9,3209.3,0.30168603]
[1768847602649,0.93641574,3210.8,3209.3,0.30168603]
[1768847602850,0.93641574,3210.7,3209.3,0.30168603]
[1768847603051,0.93641574,3210.6,3209.3,0.30168603]
[1768847603251,0.93641574,3210.5,3209.3,0.30168603]
[1768847603450,0.93641574,3210.4,3209.3,0.30168603]
[1768847603651,0.06815031,3210.9,3209.3,0.30168603]
[1768847603862,0.9363771,3210.8,3209.3,0.30168603]
[1768847604052,0.9363771,3210.7,3209.3,0.30168603]
[1768847604254,0.9363771,3210.6,3209.3,0.30168603]
[1768847604453,0.9363771,3210.5,3209.3,0.30168603]
[1768847604657,0.9363771,3210.4,3209.3,0.30168603]
[1768847604960,0.06815031,3210.9,3209.3,0.30168603]
[1768847605158,0.06772602,3210.7,3209.3,0.15588]
[1768847605359,1.2952967,3210.5,3209.3,0.15588]
[1768847605553,0.93635797,3210.4,3209.3,0.15588]
[1768847605750,0.93635797,3210.3,3209.3,0.15588]
[1768847605954,0.06772602,3210.7,3209.3,0.15588]
[1768847606150,0.9362737,3210.6,3209.4,0.14453397]
[1768847606355,0.9362737,3210.5,3209.4,0.14453397]
[1768847606556,0.9362737,3210.4,3209.4,0.14453397]
[1768847606756,0.9362737,3210.3,3209.4,0.14453397]
[1768847606956,1.6703867,3210.9,3209.4,0.14453397]
[1768847607156,1.2952967,3210.7,3209.0,0.00221384]
[1768847607359,1.00346567,3210.6,3209.0,0.00221384]
[1768847607667,0.93620494,3210.5,3209.0,0.00221384]
[1768847607859,0.93620494,3210.4,3209.0,0.00221384]
[1768847608066,0.93620494,3210.3,3209.0,0.00221384]
[1768847608261,0.93620494,3210.2,3209.0,0.00221384]
[1768847608456,0.06726073,3210.6,3209.0,0.00221384]
[1768847608761,0.93592901,3210.5,3209.0,0.00221384]
[1768847608955,0.93592901,3210.4,3209.0,0.00221384]
[1768847609163,0.93592901,3210.3,3209.0,0.00221384]
[1768847609360,0.93592901,3210.2,3209.0,0.00221384]
[1768847609660,0.06726073,3210.6,3209.0,0.00221384]
[1768847609856,0.93578724,3210.5,3209.0,0.00221384]
[1768847610056,0.93578724,3210.4,3209.0,0.00221384]
[1768847610258,0.93578724,3210.3,3209.0,0.00221384]
[1768847610457,0.93578724,3210.2,3209.0,0.00221384]
[1768847610658,0.06726073,3210.6,3209.0,0.00221384]
[1768847610862,0.93569436,3210.5,3209.0,0.00221384]
[1768847611058,0.93569436,3210.4,3209.0,0.00221384]
[1768847611263,0.93569436,3210.3,3209.0,0.00221384]
[1768847611465,0.93569436,3210.2,3209.0,0.00221384]
[1768847611763,0.06726073,3210.6,3209.0,0.00221384]
[1768847611965,0.93561934,3210.5,3209.0,0.00221384]
[1768847612165,0.93561934,3210.4,3209.0,0.00221384]
[1768847612463,0.93561934,3210.3,3209.0,0.00221384]
[1768847612665,0.93561934,3210.2,3209.0,0.00221384]
[1768847612867,0.06726073,3210.6,3209.0,0.00221384]
[1768847613066,0.93551655,3210.5,3209.0,0.00221384]
[1768847613266,0.93551655,3210.4,3209.0,0.00221384]
[1768847613455,0.93551655,3210.3,3209.0,0.00221384]
[1768847613661,0.93551655,3210.2,3209.0,0.00221384]
[1768847613958,0.06726073,3210.6,3209.0,0.00221384]
[1768847614161,0.93549953,3210.5,3209.0,0.00221384]
[1768847614360,0.93549953,3210.4,3209.0,0.00221384]
[1768847614567,0.93549953,3210.3,3209.0,0.00221384]
[1768847614768,0.93549953,3210.2,3209.0,0.00221384]
[1768847614963,0.06726073,3210.6,3209.0,0.00221384]
[1768847615162,0.93546516,3210.5,3209.0,0.00221384]
[1768847615366,0.93546516,3210.4,3209.0,0.00221384]
[1768847615561,0.93546516,3210.3,3209.0,0.00221384]
[1768847615762,0.93546516,3210.2,3209.0,0.00221384]
[1768847615962,0.06726073,3210.6,3209.0,0.00221384]
[1768847616162,0.93547628,3210.5,3209.0,0.00221384]
[1768847616364,0.93547628,3210.4,3209.0,0.00221384]
[1768847616567,0.93547628,3210.3,3209.0,0.00221384]
[1768847616767,0.93547628,3210.2,3209.0,0.00221384]
[1768847616964,0.06726073,3210.6,3209.0,0.00221384]
[1768847617168,0.06428285,3210.4,3209.0,0.00221384]
[1768847617373,0.9996789,3210.3,3209.0,0.00221384]
[1768847617575,0.93539605,3210.2,3209.0,0.00221384]
[1768847619274,0.93539605,3210.1,3209.0,0.00221384]
[1768847619474,0.93539605,3210.0,3209.0,0.00221384]
[1768847619771,3.18625776,3210.5,3209.0,0.00221384]
[1768847619972,0.93544447,3210.4,3209.0,0.00221384]
[1768847620164,0.93544447,3210.3,3209.0,0.00221384]
[1768847620480,0.93544447,3210.2,3209.0,0.00221384]
[1768847620775,0.93544447,3210.1,3209.0,0.00221384]
[1768847620966,0.93544447,3210.0,3209.0,0.00221384]
[1768847621166,3.18625776,3210.5,3209.0,0.00221384]
[1768847621363,0.93545146,3210.4,3209.0,0.00221384]
[1768847621560,0.93545146,3210.3,3209.0,0.00221384]
[1768847621764,0.93545146,3210.2,3209.0,0.00221384]
[1768847621973,0.93545146,3210.1,3209.0,0.00221384]
[1768847622170,0.93545146,3210.0,3209.0,0.00221384]
[1768847622371,3.18625776,3210.5,3209.0,0.00221384]
[1768847622572,0.93554135,3210.4,3209.0,0.00221384]
[1768847622875,0.93554135,3210.3,3209.0,0.00221384]
[1768847623080,0.93554135,3210.2,3209.0,0.00221384]
[1768847623376,0.93554135,3210.1,3209.0,0.00221384]
[1768847623566,0.93554135,3210.0,3209.0,0.00221384]
[1768847623862,3.18625776,3210.5,3209.0,0.00221384]
[1768847624181,0.93567737,3210.4,3209.0,0.00221384]
[1768847624474,0.93567737,3210.3,3209.0,0.00221384]
[1768847624670,0.93567737,3210.2,3209.0,0.00221384]
[1768847624969,0.93567737,3210.1,3209.0,0.00221384]
[1768847625171,0.93567737,3210.0,3209.0,0.00221384]
[1768847625372,3.18625776,3210.5,3209.0,0.00221384]
[1768847625580,0.9360835,3210.4,3209.0,0.00221384]
[1768847625874,0.9360835,3210.3,3209.0,0.00221384]
[1768847626073,0.9360835,3210.2,3209.0,0.15377303]
[1768847626275,0.9360835,3210.1,3209.0,0.15377303]
[1768847626476,0.9360835,3210.0,3209.0,0.15377303]
[1768847626668,1.745,3210.5,3209.1,0.15155919]
[1768847626969,0.93614161,3210.4,3209.1,0.15155919]
[1768847627173,0.93614161,3210.3,3209.1,0.15155919]
[1768847627370,0.93614161,3210.2,3209.1,0.15155919]
[1768847627575,0.93614161,3210.1,3209.1,0.15155919]
[1768847627877,1.745,3210.5,3209.1,0.15155919]
[1768847628080,0.93651668,3210.4,3209.1,0.15155919]
[1768847628279,1.745,3210.5,3209.1,0.15155919]
[1768847628280,0.93651668,3210.3,3209.1,0.15155919]
[1768847628578,0.93651668,3210.2,3209.1,0.15155919]
[1768847628778,0.93651668,3210.1,3209.1,0.15155919]
[1768847628979,1.6703867,3210.6,3209.2,0.15155919]
[1768847629276,0.93709556,3210.5,3209.2,0.15155919]
[1768847629473,0.93709556,3210.4,3209.2,0.15155919]
[1768847629677,3.4153867,3210.7,3209.2,0.15155919]
[1768847629678,0.93709556,3210.3,3209.2,0.15155919]
[1768847629878,0.93709556,3210.2,3209.2,0.15155919]
[1768847630081,0.93716788,3210.1,3209.2,0.15155919]
[1768847630380,3.4153867,3210.7,3209.2,0.15155919]
[1768847630683,0.93724177,3210.6,3209.3,0.15588]
[1768847630977,0.93724177,3210.5,3209.3,0.15588]
[1768847631278,0.93724177,3210.4,3209.3,0.15588]
[1768847631480,0.93724177,3210.3,3209.3,0.15588]
[1768847631781,0.93724177,3210.2,3209.3,0.15588]
[1768847631982,0.93724177,3210.1,3209.3,0.15588]
[1768847632181,3.4153867,3210.7,3209.3,0.15588]
[1768847632483,0.93732989,3210.6,3209.3,0.15588]
[1768847632684,0.93732989,3210.5,3209.3,0.15588]
[1768847632984,0.93732989,3210.4,3209.3,0.15588]
[1768847633184,0.93732989,3210.3,3209.3,0.15588]
[1768847633383,0.93732989,3210.2,3209.3,0.15588]
[1768847633585,0.93732989,3210.1,3209.3,0.15588]
[1768847633783,3.47937829,3210.7,3209.3,0.15588]
[1768847633985,1.27080366,3210.6,3209.3,0.15588]
[1768847634184,0.9373784,3210.5,3209.3,0.15588]
[1768847634376,0.9373784,3210.4,3209.3,0.15588]
[1768847634574,0.9373784,3210.3,3209.3,0.15588]
[1768847634772,0.9373784,3210.2,3209.3,0.15588]
[1768847634990,0.9373784,3210.1,3209.3,0.15588]
[1768847635181,3.47937829,3210.7,3209.3,0.15588]
[1768847635386,0.93744057,3210.6,3209.3,0.15588]
[1768847635680,0.93744057,3210.5,3209.3,0.15588]
[1768847635987,0.93744057,3210.4,3209.3,0.15588]
[1768847636185,0.93744057,3210.3,3209.3,0.15588]
[1768847636485,0.93744057,3210.2,3209.3,0.15588]
[1768847636781,0.93744057,3210.1,3209.3,0.15588]
[1768847636984,3.47937829,3210.7,3209.3,0.15588]
[1768847637183,1.29532275,3210.5,3209.3,0.15588]
[1768847637375,0.93747566,3210.4,3209.3,0.15588]
[1768847637579,0.93747566,3210.3,3209.3,0.15588]
[1768847637781,0.93747566,3210.2,3209.3,0.15588]
[1768847638084,0.93747566,3210.1,3209.3,0.15588]
[1768847638290,1.29532275,3210.5,3209.3,0.15588]
[1768847638486,0.93739158,3210.4,3209.3,0.15588]
[1768847638785,0.93739158,3210.3,3209.3,0.15588]
[1768847638985,0.93739158,3210.2,3209.3,0.15588]
[1768847639288,0.93739158,3210.1,3209.3,0.15588]
[1768847639476,1.29532275,3210.5,3209.3,0.15588]
[1768847639676,0.93731111,3210.4,3209.3,0.15588]
[1768847639883,0.93731111,3210.3,3209.3,0.15588]
[1768847640095,0.93731111,3210.2,3209.3,0.15588]
[1768847640282,1.6703867,3210.8,3209.9,1.29532275]
[1768847640480,0.00275417,3211.0,3209.9,1.29532275]
[1768847641290,0.00275417,3211.0,3209.8,0.1388477]
[1768847641585,0.00275417,3211.0,3209.8,0.2946977]
[1768847641794,0.00275417,3211.0,3210.1,1.43417045]
[1768847642289,0.00275417,3211.0,3210.1,0.1388477]
[1768847644392,0.00275417,3211.0,3210.1,1.43417045]
[1768847644591,0.00275417,3211.0,3210.2,0.1388477]
[1768847645685,0.00275417,3211.0,3210.0,0.15584]
[1768847646588,0.00275417,3211.0,3210.0,0.2946877]
[1768847646787,1.745,3211.9,3210.8,1.43417045]
[1768847646994,1.29532275,3211.8,3210.8,0.1388477]
[1768847647189,1.29532275,3211.8,3210.4,1.58999045]
[1768847647595,1.29532275,3211.4,3209.9,0.1388477]
[1768847647885,1.29532275,3211.4,3209.3,40.8]
[1768847647886,1.29532275,3210.6,3209.4,0.1388477]
[1768847648578,1.29532275,3210.9,3209.4,0.2947177]
[1768847648784,1.29532275,3210.9,3209.5,1.29532275]
[1768847648991,1.29532275,3210.9,3209.4,0.2947177]
[1768847649183,1.29532275,3210.9,3209.6,1.29532275]
[1768847650896,1.29532275,3210.9,3209.6,1.43417045]
[1768847654994,1.29532275,3211.3,3209.9,1.29532275]
[1768847655186,1.29532275,3211.1,3210.1,0.15584]
[1768847655386,1.29532275,3210.9,3210.1,0.15584]
[1768847655791,0.00382461,3211.4,3210.1,0.15584]
[1768847655979,0.93120458,3211.3,3210.2,0.1388477]
[1768847656184,0.93120458,3211.2,3210.2,0.1388477]
[1768847656385,1.29914736,3211.4,3210.2,0.1388477]
[1768847656594,0.93129602,3211.3,3210.2,0.1388477]
[1768847656786,1.29914736,3211.4,3210.2,0.1388477]
[1768847656980,0.93129599,3211.3,3210.2,0.1388477]
[1768847657191,1.29914736,3211.4,3210.2,0.1388477]
[1768847657394,0.93130848,3211.3,3210.2,0.1388477]
[1768847657590,0.00382461,3211.4,3210.2,0.1388477]
[1768847657889,0.93134076,3211.3,3210.2,0.1388477]
[1768847658093,0.00382461,3211.4,3210.2,0.1388477]
[1768847658287,0.93139415,3211.3,3210.2,0.1388477]
[1768847658486,1.29914736,3211.4,3210.2,0.1388477]
[1768847658682,0.93134756,3211.3,3210.2,0.1388477]
[1768847658881,1.29914736,3211.4,3210.2,0.1388477]
[1768847659082,0.93138582,3211.3,3210.2,0.1388477]
[1768847659396,1.29914736,3211.4,3210.2,0.1388477]
[1768847659596,0.93138613,3211.3,3210.2,0.1388477]
[1768847659897,1.29914736,3211.4,3210.2,0.1388477]
[1768847660096,0.93138644,3211.3,3210.2,0.1388477]
[1768847660394,1.29914736,3211.4,3210.2,0.1388477]
[1768847660596,0.00382461,3211.4,3210.3,0.1388477]
[1768847660986,0.00382461,3211.4,3210.3,1.43417045]
[1768847661188,0.00382461,3211.4,3210.7,0.1388477]
[1768847667705,1.6703867,3212.1,3210.7,0.2946577]
[1768847667903,0.93007454,3212.0,3210.8,0.14703072]
[1768847668106,0.93007454,3211.9,3210.8,0.14703072]
[1768847668303,0.93007454,3211.8,3210.8,0.14703072]
[1768847668604,0.93007454,3211.7,3210.8,0.14703072]
[1768847668805,0.93007454,3211.6,3210.8,0.14703072]
[1768847671003,0.93007454,3211.6,3210.9,1.44235347]
[1768847674607,0.93007454,3211.6,3211.0,0.14703072]
[1768847674798,0.0028972,3211.7,3211.0,0.14703072]
[1768847677197,0.0028972,3211.7,3211.0,0.30282072]
[1768847679209,0.0028972,3211.7,3211.1,0.14703072]
[1768847684913,3.4143867,3212.6,3211.4,0.13901666]
[1768847685214,1.62846055,3212.5,3211.4,0.13901666]
[1768847685511,1.29532275,3212.5,3211.4,0.13901666]
[1768847685713,1.29813382,3212.5,3211.4,0.14132317]
[1768847686309,0.00281107,3212.5,3211.6,0.29477666]
[1768847686612,0.00281107,3212.5,3211.6,0.15576]
[1768847686814,0.92850391,3212.4,3211.6,0.15576]
[1768847687009,0.92850391,3212.3,3211.6,0.15576]
[1768847687209,0.92862924,3212.2,3211.6,0.15576]
[1768847687412,0.00281107,3212.5,3211.6,0.15576]
[1768847687708,0.9284242,3212.4,3211.6,0.15576]
[1768847687909,0.9284242,3212.3,3211.6,0.15576]
[1768847688109,0.00281107,3212.5,3211.6,0.15576]
[1768847688310,0.92842245,3212.4,3211.6,0.15576]
[1768847688514,0.92842245,3212.3,3211.6,0.15576]
[1768847688711,0.00281107,3212.5,3211.6,0.15576]
[1768847688909,0.92834158,3212.4,3211.6,0.15576]
[1768847689109,0.92834158,3212.3,3211.6,0.15576]
[1768847689310,0.00281107,3212.5,3211.6,0.15576]
[1768847689511,0.92830044,3212.4,3211.6,0.15576]
[1768847689710,0.92830044,3212.3,3211.6,0.15576]
[1768847690008,0.00281107,3212.5,3211.6,0.15576]
[1768847690207,0.92830155,3212.4,3211.6,0.15576]
[1768847690407,0.92830155,3212.3,3211.6,0.15576]
[1768847690612,0.00281107,3212.5,3211.6,0.15576]
[1768847690813,0.92875353,3212.4,3211.6,0.15576]
[1768847691012,0.92875353,3212.3,3211.6,0.15576]
[1768847691214,1.29532275,3212.4,3211.4,0.00230651]
[1768847691416,0.92869388,3212.3,3211.4,0.00230651]
[1768847691613,1.29532275,3212.4,3211.4,0.00230651]
[1768847691814,0.92869409,3212.3,3211.4,0.00230651]
[1768847692012,1.29532275,3212.4,3211.4,0.00230651]
[1768847692217,0.92869409,3212.3,3211.4,0.00230651]
[1768847692411,1.29532275,3212.4,3211.4,0.00230651]
[1768847692616,0.92862691,3212.3,3211.4,0.00230651]
[1768847692812,1.29532275,3212.4,3211.4,0.00230651]
[1768847693110,0.92862691,3212.3,3211.4,0.00230651]
[1768847693313,1.29532275,3212.4,3211.4,0.00230651]
[1768847693614,0.92857608,3212.3,3211.4,0.00230651]
[1768847693815,1.29532275,3212.4,3211.4,0.00230651]
[1768847694015,0.92857608,3212.3,3211.4,0.00230651]
[1768847694318,1.29532275,3212.4,3211.4,0.00230651]
[1768847694521,0.92854626,3212.3,3211.4,0.00230651]
[1768847694718,0.00281107,3212.5,3211.4,0.13996957]
[1768847695019,0.92854679,3212.4,3211.4,0.13996957]
[1768847695219,0.92854679,3212.3,3211.4,0.13996957]
[1768847695522,0.00281107,3212.5,3211.6,0.13766306]
[1768847695717,0.92855011,3212.4,3211.6,0.13766306]
[1768847695922,0.00281107,3212.5,3211.6,0.13766306]
[1768847696220,0.9285689,3212.4,3211.6,0.13766306]